fUST/lending_fUST_20250610
["ID","MTS","AMOUNT","RATE_DAILY","PERIOD"]
[365155479,1749501044339,-1071.58,0.00023287,4]
[365155480,1749501044349,-1603.48,0.00023287,4]
[365155481,1749501044360,-530.48,0.00023287,4]
[365155482,1749501044370,-521.55,0.00023287,4]
[365155483,1749501044379,-649.36,0.00023287,4]
[365155484,1749501044388,-460.0,0.00023287,4]
[365155485,1749501044398,-460.0,0.00023287,4]
[365155486,1749501044408,-460.0,0.00023287,4]
[365155487,1749501044418,-625.25,0.00023287,4]
[365155488,1749501044427,-955.51,0.00023287,4]
[365155489,1749501044437,-1345.98,0.00023287,4]
[365155490,1749501044446,-460.0,0.00023287,4]
[365155491,1749501044455,-2066.19,0.00023287,4]
[365155492,1749501044468,-460.0,0.00023287,4]
[365155493,1749501044477,-460.0,0.00023287,4]
[365155494,1749501044487,-9635.44,0.00023287,4]
[365155495,1749501044497,-1294.16,0.00023287,4]
[365155496,1749501044506,-525.36,0.00023287,4]
[365155497,1749501044515,-715.62,0.00023287,4]
[365155498,1749501044525,-1280.46,0.00023287,4]
[365155499,1749501044534,-1425.37,0.00023287,4]
[365155500,1749501044544,-677.83231043,0.00023328,2]
[365155501,1749501044553,-151.0,0.0002333,7]
[365155502,1749501044562,-151.0,0.0002333,7]
[365155503,1749501044571,-709.32,0.00023332,5]
[365155504,1749501044581,-151.0,0.00023345,7]
[365155505,1749501044591,-151.0,0.00023345,7]
[365155506,1749501044601,-151.0,0.00023345,7]
[365155507,1749501044610,-1200.0,0.00023363,2]
[365155508,1749501044619,-1000.0,0.00023363,2]
[365155509,1749501044629,-1000.0,0.00023363,2]
[365155510,1749501044638,-1749.9316987,0.00023383,9]
[365155511,1749501044647,-709.32,0.00023432,5]
[365155512,1749501044657,-76022.906,0.00023499,2]
[365155513,1749501044666,-872.35041136,0.000235,2]
[365155514,1749501044676,-503.79527052,0.00023504,2]
[365155515,1749501044685,-1000.0,0.00023504,2]
[365155516,1749501044694,-171.598018,0.0002352,7]
[365155517,1749501044703,-171.598018,0.0002352,7]
[365155518,1749501044713,-906.003661,0.0002352,3]
[365155519,1749501044722,-151.0,0.0002352,7]
[365155520,1749501044732,-1749.9316987,0.00023521,9]
[365155521,1749501044742,-438.97473954,0.00023527,2]
[365155522,1749501044751,-709.32,0.00023532,3]
[365155523,1749501044761,-364.646625,0.00023534,2]
[365155524,1749501044771,-151.0,0.00023561,7]
[365155525,1749501044781,-460.0,0.00023561,4]
[365155526,1749501044791,-460.0,0.00023561,4]
[365155527,1749501044800,-200.0,0.00023561,4]
[365155528,1749501044810,-150.61138,0.00023561,4]
[365155529,1749501044819,-460.0,0.00023561,4]
[365155530,1749501044829,-706.41,0.00023561,4]
[365155531,1749501044839,-992.4,0.00023561,4]
[365155532,1749501044849,-1071.58,0.00023561,4]
[365155533,1749501044859,-1603.48,0.00023561,4]
[365155534,1749501044869,-530.48,0.00023561,4]
[365155535,1749501044879,-521.55,0.00023561,4]
[365155536,1749501044894,-649.36,0.00023561,4]
[365155537,1749501044903,-460.0,0.00023561,4]
[365155538,1749501044913,-460.0,0.00023561,4]
[365155539,1749501044923,-446.40773408,0.00023561,4]
[365155540,1749501044934,-625.25,0.00023561,4]
[365155541,1749501044944,-955.51,0.00023561,4]
[365155542,1749501044953,-1345.98,0.00023561,4]
[365155543,1749501044965,-460.0,0.00023561,4]
[365155544,1749501044975,-2066.19,0.00023561,4]
[365155545,1749501044985,-460.0,0.00023561,4]
[365155546,1749501044995,-460.0,0.00023561,4]
[365155547,1749501045005,-9635.44,0.00023561,4]
[365155548,1749501045014,-1294.16,0.00023561,4]
[365155549,1749501045024,-525.36,0.00023561,4]
[365155550,1749501045033,-715.62,0.00023561,4]
[365155551,1749501045042,-1280.46,0.00023561,4]
[365155552,1749501045053,-1425.37,0.00023561,4]
[365155553,1749501045062,-709.32,0.00023632,5]
[365155554,1749501045072,-1749.9316987,0.00023659,9]
[365155555,1749501045081,-306.00339111,0.00023665,2]
[365155556,1749501045090,-217.1484714,0.00023671,2]
[365155557,1749501045100,-319.1604193,0.00023671,2]
[365155558,1749501045108,-1195.8619859,0.00023671,2]
[365155559,1749501045118,-306.0,0.00023671,2]
[365155560,1749501045127,-306.0,0.00023671,2]
[365155561,1749501045136,-881.06,0.000237,7]
[365155562,1749501045145,-709.32,0.00023732,6]
[365155563,1749501045154,-3069.83577145,0.00023788,2]
[365155564,1749501045165,-1749.9316987,0.00023797,9]
[365155565,1749501045174,-2559.38,0.000238,2]
[365155566,1749501045183,-709.32,0.00023832,3]
[365155567,1749501045192,-460.0,0.00023835,4]
[365155568,1749501045201,-460.0,0.00023835,4]
[365155569,1749501045210,-460.0,0.00023835,4]
[365155570,1749501045219,-706.41,0.00023835,4]
[365155571,1749501045228,-992.4,0.00023835,4]
[365155572,1749501045238,-1071.58,0.00023835,4]
[365155573,1749501045246,-1603.48,0.00023835,4]
[365155574,1749501045254,-530.48,0.00023835,4]
[365155575,1749501045261,-521.55,0.00023835,4]
[365155576,1749501045269,-649.36,0.00023835,4]
[365155577,1749501045277,-460.0,0.00023835,4]
[365155578,1749501045284,-151.0,0.00023835,7]
[365155579,1749501045292,-460.0,0.00023835,4]
[365155580,1749501045300,-625.25,0.00023835,4]
[365155581,1749501045307,-955.51,0.00023835,4]
[365155582,1749501045314,-1345.98,0.00023835,4]
[365155583,1749501045321,-460.0,0.00023835,4]
[365155584,1749501045327,-2066.19,0.00023835,4]
[365155585,1749501045335,-460.0,0.00023835,4]
[365155586,1749501045345,-460.0,0.00023835,4]
[365155587,1749501045354,-9635.44,0.00023835,4]
[365155588,1749501045365,-1294.16,0.00023835,4]
[365155589,1749501045375,-525.36,0.00023835,4]
[365155590,1749501045384,-715.62,0.00023835,4]
[365155591,1749501045394,-1280.46,0.00023835,4]
[365155592,1749501045403,-1425.37,0.00023835,4]
[365155593,1749501045413,-677.83231043,0.000239,2]
[365155594,1749501045422,-215.0738,0.000239,2]
[365155595,1749501045432,-1800.0,0.00023911,2]
[365155596,1749501045442,-1500.0,0.00023911,2]
[365155597,1749501045451,-1500.0,0.00023911,2]
[365155598,1749501045461,-709.32,0.00023932,5]
[365155599,1749501045470,-1749.9316987,0.00023934,10]
[365155600,1749501045480,-200.0,0.0002394,9]
[365155601,1749501045489,-2000.0,0.00023972,2]
[365155602,1749501045499,-2000.0,0.00023972,2]
[365155603,1749501045508,-2000.0,0.00023972,2]
[365155604,1749501045519,-2000.0,0.00023972,2]
[365155605,1749501045528,-2000.0,0.00023972,2]
[365155606,1749501045538,-2000.0,0.00023972,2]
[365155607,1749501045547,-2000.0,0.00023972,2]
[365155608,1749501045558,-2000.0,0.00023972,2]
[365155609,1749501045567,-2000.0,0.00023972,2]
[365155610,1749501045576,-1437.03958727,0.00023972,2]
[365155611,1749501045585,-500.0,0.00023973,2]
[365155612,1749501045595,-500.98536793,0.00023973,2]
[365155613,1749501045604,-500.0,0.00023973,2]
[365155614,1749501045614,-500.0,0.00023973,2]
[365155615,1749501045623,-500.0,0.00023973,2]
[365155616,1749501045634,-500.0,0.00023973,2]
[365155617,1749501045643,-500.0,0.00023973,2]
[365155618,1749501045653,-557.78340041,0.00023973,2]
[365155619,1749501045663,-151.0,0.00023973,7]
[365155620,1749501045673,-151.0,0.00023973,7]
[365155621,1749501045682,-1560.568451,0.00023999,2]
[365155622,1749501045692,-14859.60160394,0.00024,2]
[365155623,1749501045701,-39414.30259439,0.00024,2]
[365155624,1749501045711,-320834.26699796,0.00024,2]
[365155625,1749501045731,-21785.04272514,0.00024,2]
[365155626,1749501045742,-566.04,0.00024,2]
[365155627,1749501045814,-460.0,0.00021095,4]
[365155628,1749501045824,-460.0,0.00021369,4]
[365155629,1749501045834,-460.0,0.00021643,4]
[365155630,1749501045844,-57934.51450696,0.00024,2]
[365155642,1749501046551,-399.99760524,0.00021095,4]
[365155643,1749501046564,-60.00239476,0.00021095,4]
[365155644,1749501046573,-151.0,0.00022795,7]
[365155645,1749501046582,-3349.01841562,0.00024,2]
[365155646,1749501046662,-5662.70773581,0.00024,2]
[365155660,1749501295302,166.12604,0.00013699,2]
[365155706,1749502232830,-936.63914865,0.00020995,2]
[365155707,1749502232840,-775.94,0.00021087,2]
[365155708,1749502232849,-300.0,0.00021093,2]
[365155709,1749502232860,-500.0,0.00021094,2]
[365155710,1749502232987,-160.0,0.00021094,2]
[365155711,1749502232998,-300.0,0.00021094,2]
[365155712,1749502233007,-300.0,0.00021094,2]
[365155713,1749502233017,-1200.0,0.00021094,2]
[365155714,1749502233026,-1000.0,0.00021095,2]
[365155715,1749502233036,-460.0,0.00021095,4]
[365155716,1749502233046,-460.0,0.00021095,4]
[365155717,1749502233056,-440.0,0.00021095,4]
[365155718,1749502233066,-280.37960079,0.00021095,4]
[365155719,1749502233076,-460.0,0.00021095,2]
[365155720,1749502233086,-460.0,0.00021095,4]
[365155721,1749502233097,-460.0,0.00021095,4]
[365155722,1749502233107,-460.0,0.00021095,4]
[365155723,1749502233117,-460.0,0.00021095,4]
[365155724,1749502233128,-924.47,0.00021095,4]
[365155725,1749502233138,-1053.2,0.00021095,4]
[365155726,1749502233148,-1202.61,0.00021095,4]
[365155727,1749502233158,-529.81,0.00021095,4]
[365155728,1749502233168,-460.0,0.00021095,4]
[365155729,1749502233178,-460.0,0.00021095,4]
[365155730,1749502233188,-460.0,0.00021095,4]
[365155731,1749502233198,-440.0,0.00021095,4]
[365155732,1749502233208,-643.0,0.00021095,4]
[365155733,1749502233218,-410.8,0.00021095,4]
[365155734,1749502233227,-440.0,0.00021095,4]
[365155735,1749502233237,-13.45302591,0.00021095,4]
[365155736,1749502233250,-426.54697409,0.00021095,4]
[365155737,1749502233260,-460.0,0.00021095,4]
[365155738,1749502233270,-460.0,0.00021095,4]
[365155739,1749502233280,-440.0,0.00021095,4]
[365155740,1749502233290,-440.0,0.00021095,4]
[365155741,1749502233299,-584.82,0.00021095,4]
[365155742,1749502233310,-430.0,0.00021095,4]
[365155743,1749502233320,-430.0,0.00021095,4]
[365155744,1749502233329,-440.0,0.00021095,4]
[365155745,1749502233339,-440.0,0.00021095,4]
[365155746,1749502233348,-341.76301991,0.00021095,4]
[365155747,1749502233357,-756.45,0.00021095,4]
[365155748,1749502233366,-460.0,0.00021095,4]
[365155749,1749502233376,-1182.89,0.00021095,4]
[365155750,1749502233385,-460.0,0.00021095,4]
[365155751,1749502233394,-460.0,0.00021095,4]
[365155752,1749502233403,-460.0,0.00021095,4]
[365155753,1749502233413,-460.0,0.00021095,4]
[365155754,1749502233422,-460.0,0.00021095,4]
[365155755,1749502233432,-460.0,0.00021095,4]
[365155756,1749502233441,-1352.81,0.00021095,4]
[365155757,1749502233451,-1908.08,0.00021095,4]
[365155758,1749502233462,-1284.75,0.00021095,4]
[365155759,1749502233472,-460.0,0.00021095,4]
[365155760,1749502233482,-8875.44,0.00021095,4]
[365155761,1749502233492,-460.0,0.00021095,4]
[365155762,1749502233502,-596.35,0.00021095,4]
[365155763,1749502233517,-1232.05,0.00021095,4]
[365155764,1749502233526,-420.0,0.00021095,4]
[365155765,1749502233536,-170.333,0.00021269,2]
[365155766,1749502233546,-151.0,0.00021269,2]
[365155767,1749502233557,-151.0,0.00021269,2]
[365155768,1749502233567,-154.00667859,0.00021269,2]
[365155769,1749502233576,-153.75203831,0.00021269,2]
[365155770,1749502233587,-151.82357693,0.00021269,2]
[365155771,1749502233597,-151.0,0.00021269,2]
[365155772,1749502233607,-156.49661637,0.00021269,2]
[365155773,1749502233617,-153.48666037,0.00021269,2]
[365155774,1749502233627,-151.0,0.00021269,2]
[365155775,1749502233636,-201.68662996,0.00021269,2]
[365155776,1749502233646,-151.0,0.00021269,2]
[365155777,1749502233656,-207.8642298,0.00021269,2]
[365155778,1749502233665,-151.0,0.00021269,2]
[365155779,1749502233675,-151.0,0.00021269,2]
[365155780,1749502233685,-151.0,0.00021269,2]
[365155781,1749502233695,-200.17537172,0.00021269,2]
[365155782,1749502233704,-154.56609765,0.00021269,2]
[365155783,1749502233715,-151.0,0.00021296,2]
[365155784,1749502233725,-151.0,0.00021296,2]
[365155785,1749502233735,-151.0,0.00021296,2]
[365155786,1749502233745,-151.0,0.00021296,2]
[365155787,1749502233755,-151.0,0.00021296,2]
[365155788,1749502233765,-151.0,0.00021296,2]
[365155789,1749502233775,-151.0,0.00021324,2]
[365155790,1749502233785,-151.0,0.00021324,2]
[365155791,1749502233794,-151.0,0.00021324,2]
[365155792,1749502233804,-206.62933508,0.00021324,2]
[365155793,1749502233813,-151.0,0.00021324,2]
[365155794,1749502233823,-198.0,0.00021324,2]
[365155795,1749502233833,-151.0,0.00021351,2]
[365155796,1749502233843,-158.6675179,0.00021351,2]
[365155797,1749502233853,-151.0,0.00021351,2]
[365155798,1749502233862,-151.0,0.00021351,2]
[365155799,1749502233872,-1035.26485506,0.00021369,2]
[365155800,1749502233881,-460.0,0.00021369,4]
[365155801,1749502233891,-460.0,0.00021369,4]
[365155802,1749502233900,-460.0,0.00021369,2]
[365155803,1749502233909,-380.0,0.00021369,4]
[365155804,1749502233918,-460.0,0.00021369,4]
[365155805,1749502233928,-924.47,0.00021369,4]
[365155806,1749502233937,-1053.2,0.00021369,4]
[365155807,1749502233947,-1202.61,0.00021369,4]
[365155808,1749502233957,-529.81,0.00021369,4]
[365155809,1749502233967,-460.0,0.00021369,4]
[365155810,1749502233977,-460.0,0.00021369,4]
[365155811,1749502233987,-460.0,0.00021369,4]
[365155812,1749502233996,-643.0,0.00021369,4]
[365155813,1749502234006,-460.0,0.00021369,4]
[365155814,1749502234016,-460.0,0.00021369,4]
[365155815,1749502234026,-584.82,0.00021369,4]
[365155816,1749502234035,-756.45,0.00021369,4]
[365155817,1749502234045,-460.0,0.00021369,4]
[365155818,1749502234055,-1182.89,0.00021369,4]
[365155819,1749502234066,-460.0,0.00021369,4]
[365155820,1749502234076,-460.0,0.00021369,4]
[365155821,1749502234085,-460.0,0.00021369,4]
[365155822,1749502234095,-460.0,0.00021369,4]
[365155823,1749502234105,-460.0,0.00021369,4]
[365155824,1749502234114,-322.59116447,0.00021369,4]
[365155825,1749502234124,-1352.81,0.00021369,4]
[365155826,1749502234134,-1908.08,0.00021369,4]
[365155827,1749502234143,-1284.75,0.00021369,4]
[365155828,1749502234153,-460.0,0.00021369,4]
[365155829,1749502234162,-8875.44,0.00021369,4]
[365155830,1749502234172,-460.0,0.00021369,4]
[365155831,1749502234182,-596.35,0.00021369,4]
[365155832,1749502234192,-1232.05,0.00021369,4]
[365155833,1749502234202,-936.63914865,0.00021506,2]
[365155834,1749502234211,-460.0,0.00021643,4]
[365155835,1749502234222,-460.0,0.00021643,2]
[365155836,1749502234231,-924.47,0.00021643,4]
[365155837,1749502234241,-1053.2,0.00021643,4]
[365155838,1749502234254,-1202.61,0.00021643,4]
[365155839,1749502234266,-529.81,0.00021643,4]
[365155840,1749502234279,-460.0,0.00021643,4]
[365155841,1749502234292,-460.0,0.00021643,4]
[365155842,1749502234304,-460.0,0.00021643,4]
[365155843,1749502234317,-643.0,0.00021643,4]
[365155844,1749502234328,-460.0,0.00021643,4]
[365155845,1749502234339,-460.0,0.00021643,4]
[365155846,1749502234352,-584.82,0.00021643,4]
[365155847,1749502234364,-756.45,0.00021643,4]
[365155848,1749502234376,-460.0,0.00021643,4]
[365155849,1749502234388,-1182.89,0.00021643,4]
[365155850,1749502234399,-460.0,0.00021643,4]
[365155851,1749502234412,-460.0,0.00021643,4]
[365155852,1749502234424,-460.0,0.00021643,4]
[365155853,1749502234436,-553.24574625,0.00021643,4]
[365155854,1749502234447,-460.0,0.00021643,4]
[365155855,1749502234458,-1352.81,0.00021643,4]
[365155856,1749502234470,-1908.08,0.00021643,4]
[365155857,1749502234482,-1284.75,0.00021643,4]
[365155858,1749502234494,-460.0,0.00021643,4]
[365155859,1749502234507,-8875.44,0.00021643,4]
[365155860,1749502234520,-460.0,0.00021643,4]
[365155861,1749502234531,-596.35,0.00021643,4]
[365155862,1749502234543,-1232.05,0.00021643,4]
[365155863,1749502234555,-16000.0,0.00021737,2]
[365155864,1749502234566,-424.05420114,0.00021751,2]
[365155865,1749502234578,-229.64266968,0.00021751,2]
[365155866,1749502234592,-160.0,0.00021751,2]
[365155867,1749502234614,-213.08899333,0.00021751,2]
[365155868,1749502234632,-834.7738823,0.00021751,2]
[365155869,1749502234645,-11856.04170836,0.00021751,2]
[365155870,1749502234660,-160.0,0.00021751,2]
[365155871,1749502234673,-160.0,0.00021751,2]
[365155872,1749502234685,-160.0,0.00021751,2]
[365155873,1749502234697,-842.5625,0.00021751,2]
[365155874,1749502234712,-798.19,0.000218,2]
[365155875,1749502234723,-500.0,0.00021828,2]
[365155876,1749502234736,-500.0,0.00021828,2]
[365155877,1749502234751,-500.0,0.00021828,2]
[365155878,1749502234765,-500.0,0.00021828,2]
[365155879,1749502234778,-501.44768991,0.00021869,2]
[365155880,1749502234792,-500.0,0.00021913,2]
[365155881,1749502234806,-460.0,0.00021917,4]
[365155882,1749502234818,-460.0,0.00021917,2]
[365155883,1749502234833,-924.47,0.00021917,4]
[365155884,1749502234846,-1053.2,0.00021917,4]
[365155885,1749502234860,-1202.61,0.00021917,4]
[365155886,1749502234873,-529.81,0.00021917,4]
[365155887,1749502234887,-460.0,0.00021917,4]
[365155888,1749502234898,-460.0,0.00021917,4]
[365155889,1749502234909,-460.0,0.00021917,4]
[365155890,1749502234919,-643.0,0.00021917,4]
[365155891,1749502234930,-460.0,0.00021917,4]
[365155892,1749502234940,-460.0,0.00021917,4]
[365155893,1749502234951,-584.82,0.00021917,4]
[365155894,1749502234963,-756.45,0.00021917,4]
[365155895,1749502234976,-460.0,0.00021917,4]
[365155896,1749502234990,-1182.89,0.00021917,4]
[365155897,1749502235002,-460.0,0.00021917,4]
[365155898,1749502235015,-460.0,0.00021917,4]
[365155899,1749502235026,-460.0,0.00021917,4]
[365155900,1749502235036,-500.0,0.00021917,2]
[365155901,1749502235047,-380.0,0.00021917,4]
[365155902,1749502235058,-1352.81,0.00021917,4]
[365155903,1749502235070,-1908.08,0.00021917,4]
[365155904,1749502235083,-500.0,0.00021917,4]
[365155905,1749502235095,-500.0,0.00021917,4]
[365155906,1749502235106,-1284.75,0.00021917,4]
[365155907,1749502235116,-460.0,0.00021917,4]
[365155908,1749502235127,-8875.44,0.00021917,4]
[365155909,1749502235137,-460.0,0.00021917,4]
[365155910,1749502235148,-596.35,0.00021917,4]
[365155911,1749502235160,-1232.05,0.00021917,4]
[365155912,1749502235171,-152.0,0.00022,2]
[365155913,1749502235185,-936.63914865,0.00022017,2]
[365155914,1749502235198,-1898.61862192,0.00022091,2]
[365155915,1749502235210,-269.97,0.00022181,3]
[365155916,1749502235223,-809.93,0.00022181,3]
[365155917,1749502235236,-460.0,0.00022191,4]
[365155918,1749502235249,-460.0,0.00022191,2]
[365155919,1749502235263,-924.47,0.00022191,4]
[365155920,1749502235278,-1053.2,0.00022191,4]
[365155921,1749502235291,-1202.61,0.00022191,4]
[365155922,1749502235303,-529.81,0.00022191,4]
[365155923,1749502235316,-460.0,0.00022191,4]
[365155924,1749502235327,-460.0,0.00022191,4]
[365155925,1749502235339,-460.0,0.00022191,4]
[365155926,1749502235351,-643.0,0.00022191,4]
[365155927,1749502235363,-460.0,0.00022191,4]
[365155928,1749502235375,-460.0,0.00022191,4]
[365155929,1749502235386,-584.82,0.00022191,4]
[365155930,1749502235398,-756.45,0.00022191,4]
[365155931,1749502235409,-460.0,0.00022191,4]
[365155932,1749502235422,-1182.89,0.00022191,4]
[365155933,1749502235433,-460.0,0.00022191,4]
[365155934,1749502235445,-460.0,0.00022191,4]
[365155935,1749502235457,-460.0,0.00022191,4]
[365155936,1749502235469,-1352.81,0.00022191,4]
[365155937,1749502235480,-1908.08,0.00022191,4]
[365155938,1749502235491,-1284.75,0.00022191,4]
[365155939,1749502235503,-460.0,0.00022191,4]
[365155940,1749502235517,-8875.44,0.00022191,4]
[365155941,1749502235529,-460.0,0.00022191,4]
[365155942,1749502235540,-596.35,0.00022191,4]
[365155943,1749502235552,-1232.05,0.00022191,4]
[365155944,1749502235565,-281.31911977,0.000222,69]
[365155945,1749502235577,-160.0,0.00022252,3]
[365155946,1749502235588,-16000.0,0.00022285,2]
[365155947,1749502235600,-729.5735751,0.00022411,2]
[365155948,1749502235611,-460.0,0.00022465,4]
[365155949,1749502235624,-460.0,0.00022465,2]
[365155950,1749502235636,-924.47,0.00022465,4]
[365155951,1749502235648,-1053.2,0.00022465,4]
[365155952,1749502235659,-424.6,0.00022465,2]
[365155953,1749502235670,-1202.61,0.00022465,4]
[365155954,1749502235682,-529.81,0.00022465,4]
[365155955,1749502235693,-460.0,0.00022465,4]
[365155956,1749502235704,-460.0,0.00022465,4]
[365155957,1749502235715,-460.0,0.00022465,4]
[365155958,1749502235726,-643.0,0.00022465,4]
[365155959,1749502235737,-460.0,0.00022465,4]
[365155960,1749502235747,-460.0,0.00022465,4]
[365155961,1749502235758,-584.82,0.00022465,4]
[365155962,1749502235769,-756.45,0.00022465,4]
[365155963,1749502235780,-460.0,0.00022465,4]
[365155964,1749502235927,-1182.89,0.00022465,4]
[365155965,1749502235936,-460.0,0.00022465,4]
[365155966,1749502235948,-460.0,0.00022465,4]
[365155967,1749502235958,-460.0,0.00022465,4]
[365155968,1749502235967,-500.0,0.00022465,2]
[365155969,1749502235977,-1352.81,0.00022465,4]
[365155970,1749502235987,-1908.08,0.00022465,4]
[365155971,1749502235997,-1284.75,0.00022465,4]
[365155972,1749502236006,-460.0,0.00022465,4]
[365155973,1749502236016,-8875.44,0.00022465,4]
[365155974,1749502236026,-460.0,0.00022465,4]
[365155975,1749502236036,-596.35,0.00022465,4]
[365155976,1749502236046,-1232.05,0.00022465,4]
[365155977,1749502236056,-936.63914865,0.00022528,2]
[365155978,1749502236067,-207.4,0.00022531,2]
[365155979,1749502236077,-4512.37218656,0.00022531,2]
[365155980,1749502236087,-417.14724398,0.00022531,2]
[365155981,1749502236096,-1688.0,0.00022531,2]
[365155982,1749502236106,-1898.6186219,0.00022543,2]
[365155983,1749502236116,-1003.98943177,0.00022586,2]
[365155984,1749502236125,-182.05085615,0.00022739,4]
[365156017,1749502238586,-277.94914385,0.00022739,4]
[365156018,1749502238595,-344.31020639,0.00022739,2]
[365156019,1749502238605,-924.47,0.00022739,4]
[365156020,1749502238615,-1053.2,0.00022739,4]
[365156021,1749502238624,-1202.61,0.00022739,4]
[365156022,1749502238634,-529.81,0.00022739,4]
[365156023,1749502238643,-460.0,0.00022739,4]
[365156024,1749502238653,-460.0,0.00022739,4]
[365156025,1749502238662,-460.0,0.00022739,4]
[365156027,1749502238672,-643.0,0.00022739,4]
[365156028,1749502238683,-460.0,0.00022739,4]
[365156029,1749502238694,-460.0,0.00022739,4]
[365156030,1749502238703,-584.82,0.00022739,4]
[365156031,1749502238713,-756.45,0.00022739,4]
[365156032,1749502238725,-460.0,0.00022739,4]
[365156033,1749502238734,-1182.89,0.00022739,4]
[365156034,1749502238745,-460.0,0.00022739,4]
[365156035,1749502238755,-460.0,0.00022739,4]
[365156036,1749502238765,-460.0,0.00022739,4]
[365156037,1749502238774,-1352.81,0.00022739,4]
[365156038,1749502238783,-1908.08,0.00022739,4]
[365156039,1749502238793,-1284.75,0.00022739,4]
[365156040,1749502238802,-460.0,0.00022739,4]
[365156041,1749502238812,-8875.44,0.00022739,4]
[365156042,1749502238821,-460.0,0.00022739,4]
[365156043,1749502238831,-596.35,0.00022739,4]
[365156044,1749502238840,-1232.05,0.00022739,4]
[365156045,1749502238849,-158.774002,0.00022795,7]
[365156046,1749502238859,-234.827056,0.00022795,7]
[365156047,1749502238868,-151.0,0.00022795,7]
[365156048,1749502238878,-151.0,0.00022795,7]
[365156049,1749502238887,-151.0,0.0002284,7]
[365156050,1749502238896,-151.0,0.0002284,7]
[365156051,1749502238906,-420.0,0.00022943,2]
[365156052,1749502238915,-420.0,0.00022943,2]
[365156053,1749502238925,-1898.6186219,0.00022996,2]
[365156054,1749502238934,-1551.89,0.00023004,2]
[365156055,1749502238944,-460.0,0.00023013,4]
[365156056,1749502238955,-924.47,0.00023013,4]
[365156057,1749502238965,-1053.2,0.00023013,4]
[365156058,1749502238975,-1202.61,0.00023013,4]
[365156059,1749502238985,-529.81,0.00023013,4]
[365156060,1749502238995,-460.0,0.00023013,4]
[365156061,1749502239004,-460.0,0.00023013,4]
[365156062,1749502239014,-460.0,0.00023013,4]
[365156063,1749502239024,-643.0,0.00023013,4]
[365156064,1749502239034,-460.0,0.00023013,4]
[365156065,1749502239044,-460.0,0.00023013,4]
[365156066,1749502239053,-584.82,0.00023013,4]
[365156067,1749502239064,-756.45,0.00023013,4]
[365156068,1749502239073,-460.0,0.00023013,4]
[365156069,1749502239084,-1182.89,0.00023013,4]
[365156070,1749502239093,-460.0,0.00023013,4]
[365156071,1749502239102,-460.0,0.00023013,4]
[365156072,1749502239112,-460.0,0.00023013,4]
[365156073,1749502239122,-500.0,0.00023013,2]
[365156074,1749502239132,-1352.81,0.00023013,4]
[365156075,1749502239142,-1908.08,0.00023013,4]
[365156076,1749502239151,-1284.75,0.00023013,4]
[365156077,1749502239161,-460.0,0.00023013,4]
[365156078,1749502239172,-8875.44,0.00023013,4]
[365156079,1749502239182,-460.0,0.00023013,4]
[365156080,1749502239191,-1232.05,0.00023013,4]